[Event "MČR družstev mladších žáků 2024"]
[Site "Harrachov, Czech Republic"]
[Date "2024.06.15"]
[Round "5.21"]
[White "Hujova Tess"]
[Black "Bartak Tobias"]
[Result "1-0"]
[TimeControl "25+10"]
[WhiteFideId "23744936"]
[BlackFideId "23753544"]
[WhiteElo "1311"]
[BlackElo "1260"]

1. e4 {[%clk 00:24:57]} {[%emt 00:00:21]} e5 {[%clk 00:25:03]} {[%emt
00:00:17]} 2. Nf3 {[%clk 00:25:05]} {[%emt 00:00:02]} Nf6 {[%clk 00:24:53]}
{[%emt 00:00:21]} 3. Nc3 {[%clk 00:25:08]} {[%emt 00:00:07]} Bb4 {[%clk
00:24:28]} {[%emt 00:00:35]} 4. Bc4 {[%clk 00:25:01]} {[%emt 00:00:17]} d6
{[%clk 00:24:16]} {[%emt 00:00:22]} 5. d3 {[%clk 00:24:36]} {[%emt 00:00:35]}
O-O {[%clk 00:23:55]} {[%emt 00:00:31]} 6. O-O {[%clk 00:24:21]} {[%emt
00:00:24]} Bg4 {[%clk 00:23:29]} {[%emt 00:00:37]} 7. h3 {[%clk 00:24:15]}
{[%emt 00:00:15]} Bh5 {[%clk 00:23:06]} {[%emt 00:00:32]} 8. Bg5 {[%clk
00:24:12]} {[%emt 00:00:14]} h6 {[%clk 00:22:51]} {[%emt 00:00:25]} 9. Bh4
{[%clk 00:23:41]} {[%emt 00:00:41]} c6 {[%clk 00:22:31]} {[%emt 00:00:31]} 10.
a3 {[%clk 00:23:31]} {[%emt 00:00:19]} Bc5 {[%clk 00:21:19]} {[%emt 00:01:23]}
11. Na4 {[%clk 00:21:04]} {[%emt 00:02:37]} Bb6 {[%clk 00:19:55]} {[%emt
00:01:34]} 12. Nxb6 {[%clk 00:19:35]} {[%emt 00:01:38]} axb6 {[%clk 00:19:47]}
{[%emt 00:00:19]} 13. Re1 {[%clk 00:19:03]} {[%emt 00:00:39]} b5 {[%clk
00:19:07]} {[%emt 00:00:53]} 14. Bb3 {[%clk 00:18:48]} {[%emt 00:00:23]} Nbd7
{[%clk 00:18:50]} {[%emt 00:00:29]} 15. d4 {[%clk 00:16:06]} {[%emt 00:02:52]}
Bxf3 {[%clk 00:17:56]} {[%emt 00:01:05]} 16. gxf3 {[%clk 00:16:01]} {[%emt
00:00:13]} exd4 {[%clk 00:17:18]} {[%emt 00:00:49]} 17. Qd2 {[%emt 00:00:47]}
d3 18. Qxd3 {[%clk 00:15:22]} Ne5 {[%clk 00:17:18]} {[%emt 00:00:10]} 19. Qd4
{[%clk 00:13:25]} g5 {[%clk 00:14:34]} {[%emt 00:05:02]} 20. Kg2 {[%clk
00:13:07]} c5 {[%clk 00:12:37]} {[%emt 00:02:35]} 21. Bg3 {[%clk 00:12:18]} c4
{[%clk 00:11:42]} {[%emt 00:02:04]} 22. Qd2 {[%clk 00:11:47]} Nh5 {[%clk
00:11:09]} {[%emt 00:01:24]} 23. Ba2 {[%clk 00:11:05]} Nxg3 {[%clk 00:11:00]}
{[%emt 00:01:11]} 24. Rad1 {[%clk 00:11:07]} Qe7 {[%clk 00:11:00]} 25. fxg3
{[%clk 00:11:07]} {[%emt 00:00:07]} Qf6 {[%clk 00:10:59]} {[%emt 00:00:12]} 26.
f4 {[%clk 00:10:29]} {[%emt 00:00:48]} gxf4 {[%clk 00:10:34]} {[%emt 00:00:36]}
27. Qxf4 {[%clk 00:10:20]} {[%emt 00:00:18]} Qg6 {[%clk 00:09:48]} {[%emt
00:00:56]} 28. Qf5 {[%clk 00:09:17]} {[%emt 00:01:12]} Qxf5 {[%clk 00:09:33]}
{[%emt 00:00:26]} 29. exf5 {[%clk 00:09:22]} {[%emt 00:00:05]} Rad8 {[%clk
00:09:30]} {[%emt 00:00:13]} 30. Bb1 {[%clk 00:08:44]} {[%emt 00:00:47]} f6
{[%clk 00:08:58]} {[%emt 00:00:43]} 31. Rd5 {[%clk 00:08:27]} {[%emt 00:00:26]}
Rf7 {[%clk 00:07:12]} {[%emt 00:01:56]} 32. Rxb5 {[%clk 00:07:47]} {[%emt
00:00:50]} d5 {[%clk 00:05:38]} {[%emt 00:01:45]} 33. b3 {[%clk 00:05:55]}
{[%emt 00:02:02]} c3 {[%clk 00:04:58]} {[%emt 00:00:50]} 34. Ba2 {[%clk
00:05:45]} {[%emt 00:00:20]} Rc7 {[%clk 00:04:17]} {[%emt 00:00:51]} 35. b4
{[%clk 00:05:26]} {[%emt 00:00:28]} Nc4 {[%clk 00:04:14]} {[%emt 00:00:14]} 36.
Bxc4 {[%clk 00:05:18]} {[%emt 00:00:18]} dxc4 {[%clk 00:04:22]} {[%emt
00:00:02]} 37. Kf2 {[%clk 00:04:41]} {[%emt 00:00:46]} Rd2+ {[%clk 00:04:23]}
{[%emt 00:00:10]} 38. Re2 {[%clk 00:04:47]} {[%emt 00:00:03]} Rcd7 {[%clk
00:04:27]} {[%emt 00:00:07]} 39. Rc5 {[%clk 00:04:35]} {[%emt 00:00:22]} Rxe2+
{[%clk 00:04:23]} {[%emt 00:00:14]} 40. Kxe2 {[%clk 00:04:44]} Rd2+ {[%clk
00:04:32]} {[%emt 00:00:01]} 41. Ke1 {[%clk 00:04:49]} {[%emt 00:00:04]} Rxc2
{[%clk 00:04:37]} {[%emt 00:00:06]} 42. Rxc4 {[%clk 00:04:57]} {[%emt
00:00:02]} Rc1+ {[%clk 00:04:13]} {[%emt 00:00:34]} 43. Ke2 {[%clk 00:05:06]}
{[%emt 00:00:01]} Rc2+ {[%clk 00:03:38]} {[%emt 00:00:46]} 44. Kd3 {[%clk
00:05:07]} {[%emt 00:00:07]} Rg2 {[%clk 00:03:39]} {[%emt 00:00:10]} 45. Rxc3
{[%clk 00:04:59]} {[%emt 00:00:18]} Rxg3+ {[%clk 00:03:47]} {[%emt 00:00:02]}
46. Kd4 {[%clk 00:05:04]} {[%emt 00:00:03]} Rg7 {[%clk 00:03:45]} {[%emt
00:00:14]} 47. a4 {[%clk 00:04:45]} {[%emt 00:00:29]} Rd7+ {[%clk 00:03:48]}
{[%emt 00:00:07]} 48. Ke4 {[%clk 00:04:30]} {[%emt 00:00:24]} Re7+ {[%clk
00:03:22]} {[%emt 00:00:38]} 49. Kf4 {[%clk 00:04:35]} {[%emt 00:00:04]} Rd7
{[%clk 00:03:29]} {[%emt 00:00:03]} 50. Rc4 {[%clk 00:04:39]} {[%emt 00:00:05]}
Kh7 {[%clk 00:03:26]} {[%emt 00:00:13]} 51. a5 {[%clk 00:04:30]} {[%emt
00:00:21]} h5 {[%clk 00:03:12]} {[%emt 00:00:23]} 52. b5 {[%clk 00:04:17]}
{[%emt 00:00:23]} Kh6 {[%clk 00:03:14]} {[%emt 00:00:08]} 53. Ke4 {[%clk
00:04:08]} {[%emt 00:00:18]} Re7+ {[%clk 00:03:17]} {[%emt 00:00:08]} 54. Kd4
{[%clk 00:04:15]} {[%emt 00:00:02]} Rd7+ {[%clk 00:03:25]} {[%emt 00:00:02]} 55.
Kc5 {[%clk 00:04:20]} {[%emt 00:00:05]} Kg5 {[%clk 00:03:18]} {[%emt 00:00:18]}
56. a6 {[%clk 00:04:12]} {[%emt 00:00:17]} bxa6 {[%clk 00:03:09]} {[%emt
00:00:19]} 57. bxa6 {[%clk 00:04:20]} {[%emt 00:00:02]} Kxf5 {[%clk 00:03:09]}
{[%emt 00:00:11]} 58. Kb6 {[%clk 00:04:26]} {[%emt 00:00:03]} Rd6+ {[%clk
00:02:39]} {[%emt 00:00:41]} 59. Rc6 {[%clk 00:04:18]} {[%emt 00:00:18]} Rd3
{[%clk 00:01:57]} {[%emt 00:00:52]} 60. a7 {[%clk 00:04:13]} {[%emt 00:00:15]}
Rb3+ {[%clk 00:02:02]} {[%emt 00:00:05]} 61. Kc7 {[%clk 00:04:21]} {[%emt
00:00:01]} Ra3 {[%clk 00:02:08]} {[%emt 00:00:05]} 62. Kb7 {[%clk 00:04:29]}
{[%emt 00:00:02]} Rxa7+ {[%clk 00:02:00]} {[%emt 00:00:18]} 63. Kxa7 {[%clk
00:04:37]} {[%emt 00:00:02]} Kg5 {[%clk 00:02:09]} {[%emt 00:00:01]} 64. Rc4
{[%clk 00:04:34]} {[%emt 00:00:12]} f5 {[%clk 00:02:11]} {[%emt 00:00:08]} 65.
h4+ {[%clk 00:04:42]} {[%emt 00:00:02]} Kf6 {[%clk 00:02:19]} {[%emt 00:00:02]}
66. Rc6+ {[%clk 00:04:46]} {[%emt 00:00:06]} Kg7 {[%clk 00:02:19]} {[%emt
00:00:11]} 67. Kb6 {[%clk 00:04:52]} {[%emt 00:00:04]} Kf7 {[%clk 00:02:05]}
{[%emt 00:00:25]} 68. Rh6 {[%clk 00:04:56]} {[%emt 00:00:04]} Ke6 {[%emt
00:00:05]} 1-0



[ePGN "0.1;DGT LiveChess/2.2.6"]

[Event "MČR družstev mladších žáků 2024"]
[Site "Harrachov, Czech Republic"]
[Date "2024.06.15"]
[Round "5.22"]
[White "Vratny Vojtech"]
[Black "Jenikova Sabina"]
[Result "0-1"]
[TimeControl "25+10"]
[WhiteFideId "23753692"]
[BlackFideId "23759860"]
[WhiteElo "1208"]
[BlackElo "1114"]

1. Nf3 {[%clk 00:25:18]} {[%emt 00:00:02]} e6 {[%clk 00:25:05]} {[%emt
00:00:15]} 2. g3 {[%clk 00:25:26]} {[%emt 00:00:03]} b6 {[%clk 00:25:07]}
{[%emt 00:00:09]} 3. Bg2 {[%clk 00:25:32]} {[%emt 00:00:03]} Bb7 {[%clk
00:25:15]} {[%emt 00:00:02]} 4. O-O {[%clk 00:25:37]} {[%emt 00:00:04]} c5
{[%clk 00:25:17]} {[%emt 00:00:09]} 5. d3 {[%clk 00:25:41]} {[%emt 00:00:05]}
Nc6 {[%clk 00:25:24]} {[%emt 00:00:03]} 6. e4 {[%clk 00:25:40]} {[%emt
00:00:10]} d6 {[%clk 00:25:24]} {[%emt 00:00:11]} 7. Nc3 {[%clk 00:25:30]}
{[%emt 00:00:20]} Be7 {[%clk 00:25:29]} {[%emt 00:00:06]} 8. Re1 {[%clk
00:25:30]} {[%emt 00:00:08]} Nf6 {[%clk 00:25:26]} {[%emt 00:00:14]} 9. Bg5
{[%clk 00:25:33]} {[%emt 00:00:07]} a6 {[%clk 00:25:17]} {[%emt 00:00:20]} 10.
a4 {[%clk 00:25:34]} {[%emt 00:00:08]} Qc7 {[%clk 00:24:20]} {[%emt 00:01:07]}
11. Qe2 {[%clk 00:24:29]} {[%emt 00:01:12]} O-O {[%clk 00:23:42]} {[%emt
00:00:51]} 12. Rad1 {[%clk 00:23:46]} {[%emt 00:00:51]} Rad8 {[%clk 00:22:59]}
{[%emt 00:00:55]} 13. Qd2 {[%clk 00:22:01]} {[%emt 00:01:54]} Rfe8 {[%clk
00:22:10]} {[%emt 00:01:00]} 14. Ne2 {[%clk 00:21:00]} {[%emt 00:01:09]} b5
{[%clk 00:19:36]} {[%emt 00:02:46]} 15. axb5 {[%clk 00:20:56]} {[%emt
00:00:14]} axb5 {[%clk 00:19:41]} {[%emt 00:00:06]} 16. c3 {[%clk 00:19:58]}
{[%emt 00:01:07]} Ra8 {[%clk 00:19:35]} {[%emt 00:00:16]} 17. Bxf6 {[%clk
00:19:44]} {[%emt 00:00:24]} Bxf6 {[%clk 00:19:41]} {[%emt 00:00:05]} 18. d4
{[%clk 00:19:32]} {[%emt 00:00:20]} c4 {[%clk 00:19:00]} {[%emt 00:00:52]} 19.
Ra1 {[%clk 00:19:10]} {[%emt 00:00:32]} Na5 {[%clk 00:18:14]} {[%emt 00:00:55]}
20. Nc1 {[%clk 00:18:36]} {[%emt 00:00:42]} Ra6 {[%clk 00:18:05]} {[%emt
00:00:22]} 21. Qc2 {[%clk 00:17:07]} {[%emt 00:01:40]} Rea8 {[%clk 00:17:49]}
{[%emt 00:00:24]} 22. Ra2 {[%clk 00:15:30]} {[%emt 00:01:48]} Be7 {[%clk
00:14:50]} {[%emt 00:03:10]} 23. Nd2 {[%clk 00:14:06]} {[%emt 00:01:31]} Nc6
{[%clk 00:12:29]} {[%emt 00:02:34]} 24. Rxa6 {[%clk 00:14:01]} {[%emt
00:00:15]} Rxa6 {[%clk 00:12:35]} {[%emt 00:00:03]} 25. b3 {[%clk 00:13:16]}
{[%emt 00:00:52]} Nd8 {[%clk 00:11:41]} {[%emt 00:01:07]} 26. bxc4 {[%clk
00:12:54]} {[%emt 00:00:31]} bxc4 {[%clk 00:11:45]} {[%emt 00:00:06]} 27. Na2
{[%clk 00:11:51]} {[%emt 00:01:14]} d5 {[%clk 00:10:36]} {[%emt 00:01:19]} 28.
exd5 {[%clk 00:11:31]} {[%emt 00:00:29]} exd5 {[%clk 00:10:37]} {[%emt
00:00:10]} 29. Nc1 {[%clk 00:10:37]} {[%emt 00:01:01]} Bf8 {[%clk 00:09:11]}
{[%emt 00:01:40]} 30. Ne2 {[%clk 00:09:36]} {[%emt 00:01:10]} Qe7 {[%clk
00:08:38]} {[%emt 00:00:43]} 31. Nf3 {[%clk 00:08:27]} {[%emt 00:01:20]} Ne6
{[%clk 00:08:20]} {[%emt 00:00:27]} 32. Nf4 {[%clk 00:07:40]} {[%emt 00:00:56]}
g6 {[%clk 00:07:52]} {[%emt 00:00:40]} 33. Nxe6 {[%clk 00:07:26]} {[%emt
00:00:24]} Rxe6 {[%clk 00:07:56]} {[%emt 00:00:06]} 34. Rxe6 {[%clk 00:06:24]}
{[%emt 00:01:11]} Qxe6 {[%clk 00:07:18]} {[%emt 00:00:48]} 35. Qb1 {[%clk
00:06:04]} {[%emt 00:00:29]} Bc8 {[%clk 00:06:24]} {[%emt 00:01:05]} 36. Ng5
{[%clk 00:05:50]} {[%emt 00:00:23]} Qd6 {[%clk 00:05:51]} {[%emt 00:00:44]} 37.
Qb5 {[%clk 00:04:43]} {[%emt 00:01:14]} Be6 {[%clk 00:05:08]} {[%emt 00:00:56]}
38. Nxe6 {[%clk 00:04:34]} {[%emt 00:00:20]} fxe6 {[%clk 00:05:14]} {[%emt
00:00:05]} 39. Bh3 {[%clk 00:04:01]} {[%emt 00:00:41]} Kf7 {[%clk 00:04:43]}
{[%emt 00:00:42]} 40. Qb7+ {[%clk 00:03:53]} {[%emt 00:00:16]} Be7 {[%clk
00:04:50]} {[%emt 00:00:04]} 41. Qb1 {[%clk 00:03:32]} {[%emt 00:00:27]} Qa3
{[%clk 00:03:10]} {[%emt 00:01:48]} 42. Qe1 {[%clk 00:03:27]} {[%emt 00:00:15]}
Qa6 {[%clk 00:03:11]} {[%emt 00:00:13]} 43. Kg2 {[%clk 00:03:06]} {[%emt
00:00:30]} Bf6 {[%clk 00:02:27]} {[%emt 00:00:57]} 44. Qe3 {[%clk 00:02:31]}
{[%emt 00:00:44]} Qd6 {[%clk 00:02:14]} {[%emt 00:00:24]} 45. Qf3 {[%clk
00:01:58]} {[%emt 00:00:44]} Ke7 {[%clk 00:01:30]} {[%emt 00:00:54]} 46. Qg4
{[%clk 00:01:35]} {[%emt 00:00:32]} e5 {[%clk 00:01:09]} {[%emt 00:00:32]} 47.
dxe5 {[%clk 00:01:25]} {[%emt 00:00:20]} Bxe5 {[%clk 00:01:15]} {[%emt
00:00:04]} 48. Qh4+ {[%clk 00:01:15]} {[%emt 00:00:14]} Ke8 {[%clk 00:00:36]}
{[%emt 00:00:55]} 49. Qxh7 {[%clk 00:01:07]} {[%emt 00:00:17]} Bxc3 {[%clk
00:00:37]} {[%emt 00:00:10]} 50. Qg8+ {[%clk 00:00:41]} {[%emt 00:00:34]} Ke7
{[%clk 00:00:38]} {[%emt 00:00:10]} 51. Qh7+ {[%clk 00:00:33]} {[%emt
00:00:17]} Kf8 {[%clk 00:00:26]} {[%emt 00:00:24]} 52. Qh6+ {[%clk 00:00:28]}
{[%emt 00:00:14]} Bg7 {[%clk 00:00:33]} {[%emt 00:00:03]} 53. Qd2 {[%clk
00:00:30]} {[%emt 00:00:07]} Qc6 {[%clk 00:00:39]} {[%emt 00:00:05]} 54. Qb4+
{[%clk 00:00:32]} {[%emt 00:00:09]} Kf7 {[%clk 00:00:51]} {[%emt 00:00:08]} 55.
Qd2 {[%clk 00:00:36]} {[%emt 00:00:13]} c3 {[%clk 00:00:57]} {[%emt 00:00:06]}
56. Qf4+ {[%clk 00:00:42]} {[%emt 00:00:04]} Qf6 {[%clk 00:00:48]} {[%emt
00:00:20]} 57. Qc7+ {[%clk 00:00:48]} {[%emt 00:00:04]} Qe7 {[%clk 00:00:47]}
{[%emt 00:00:11]} 58. Qa5 {[%clk 00:00:48]} {[%emt 00:00:09]} Qe4+ {[%clk
00:00:42]} {[%emt 00:00:14]} 59. Kf1 {[%clk 00:00:30]} {[%emt 00:00:28]} c2
{[%clk 00:00:48]} {[%emt 00:00:06]} 60. Qc7+ {[%clk 00:00:31]} {[%emt
00:00:08]} Kg8 {[%clk 00:00:48]} {[%emt 00:00:11]} 61. Qc8+ {[%clk 00:00:16]}
{[%emt 00:00:24]} Kh7 {[%clk 00:00:52]} {[%emt 00:00:06]} 62. Qc5 {[%clk
00:00:16]} {[%emt 00:00:09]} Qc4+ {[%clk 00:00:50]} {[%emt 00:00:13]} 63. Qxc4
{[%emt 00:00:17]} 0-1



[ePGN "0.1;DGT LiveChess/2.2.6"]

[Event "MČR družstev mladších žáků 2024"]
[Site "Harrachov, Czech Republic"]
[Date "2024.06.15"]
[Round "5.25"]
[White "Honcharov Makar"]
[Black "Sotek Matej"]
[Result "1-0"]
[TimeControl "25+10"]
[WhiteFideId "23746203"]
[BlackFideId "23742178"]
[WhiteElo "1806"]
[BlackElo "1573"]

1. e4 {[%clk 00:25:19]} c6 {[%clk 00:25:19]} {[%emt 00:00:01]} 2. d4 {[%clk
00:25:22]} {[%emt 00:00:07]} d5 {[%clk 00:25:28]} {[%emt 00:00:01]} 3. e5
{[%clk 00:25:31]} Bf5 {[%clk 00:25:36]} {[%emt 00:00:03]} 4. Nf3 {[%clk
00:25:40]} {[%emt 00:00:01]} e6 {[%clk 00:25:42]} {[%emt 00:00:04]} 5. Be2
{[%clk 00:25:49]} c5 {[%clk 00:25:49]} {[%emt 00:00:04]} 6. Be3 {[%clk
00:25:56]} {[%emt 00:00:03]} Nc6 {[%clk 00:25:57]} {[%emt 00:00:02]} 7. O-O
{[%clk 00:25:50]} {[%emt 00:00:16]} cxd4 {[%clk 00:25:58]} {[%emt 00:00:09]} 8.
Nxd4 {[%clk 00:25:59]} {[%emt 00:00:01]} Nxd4 {[%clk 00:25:42]} {[%emt
00:00:26]} 9. Bxd4 {[%clk 00:26:06]} {[%emt 00:00:03]} Ne7 {[%clk 00:25:45]}
{[%emt 00:00:07]} 10. c3 {[%clk 00:25:55]} {[%emt 00:00:22]} Nc6 {[%clk
00:25:46]} {[%emt 00:00:08]} 11. Nd2 {[%clk 00:25:23]} {[%emt 00:00:42]} Be7
{[%clk 00:25:46]} {[%emt 00:00:09]} 12. f4 {[%clk 00:24:41]} {[%emt 00:00:53]}
g5 {[%emt 00:01:58]} 13. g4 {[%clk 00:23:56]} Be4 {[%clk 00:24:03]} {[%emt
00:00:59]} 14. f5 {[%clk 00:22:31]} {[%emt 00:01:36]} Qc7 {[%clk 00:23:37]}
{[%emt 00:00:36]} 15. Nxe4 {[%clk 00:20:57]} {[%emt 00:01:44]} dxe4 {[%clk
00:23:39]} {[%emt 00:00:07]} 16. fxe6 {[%clk 00:20:20]} {[%emt 00:00:47]} fxe6
{[%clk 00:23:37]} {[%emt 00:00:11]} 17. Qb3 {[%clk 00:19:53]} {[%emt 00:00:38]}
O-O-O {[%clk 00:21:26]} {[%emt 00:02:20]} 18. Qxe6+ {[%emt 00:00:36]} Qd7
{[%clk 00:21:14]} {[%emt 00:00:21]} 19. Qxd7+ {[%clk 00:19:34]} {[%emt
00:00:05]} Rxd7 {[%clk 00:21:18]} {[%emt 00:00:06]} 20. e6 {[%clk 00:19:43]}
{[%emt 00:00:02]} Rxd4 {[%clk 00:20:27]} {[%emt 00:01:00]} 21. cxd4 {[%clk
00:19:50]} {[%emt 00:00:02]} Nxd4 {[%clk 00:20:35]} {[%emt 00:00:02]} 22. Bc4
{[%clk 00:18:40]} {[%emt 00:01:21]} e3 {[%clk 00:19:29]} {[%emt 00:01:16]} 23.
Rf7 {[%clk 00:18:28]} {[%emt 00:00:22]} Bc5 {[%clk 00:16:45]} {[%emt 00:02:54]}
24. Kg2 {[%clk 00:18:14]} {[%emt 00:00:24]} e2 {[%clk 00:15:56]} {[%emt
00:00:59]} 25. Rc1 {[%clk 00:18:03]} {[%emt 00:00:21]} Nc2 {[%clk 00:15:26]}
{[%emt 00:00:41]} 26. Bxe2 {[%clk 00:17:57]} {[%emt 00:00:15]} Ne3+ {[%clk
00:15:25]} {[%emt 00:00:11]} 27. Kf3 {[%clk 00:17:55]} {[%emt 00:00:12]} 1-0



[ePGN "0.1;DGT LiveChess/2.2.6"]

[Event "MČR družstev mladších žáků 2024"]
[Site "Harrachov, Czech Republic"]
[Date "2024.06.15"]
[Round "5.26"]
[White "Gresek Oskar"]
[Black "Tykalova Barbora"]
[Result "1/2-1/2"]
[TimeControl "25+10"]
[WhiteFideId "23750189"]
[BlackFideId "23750898"]
[WhiteElo "1467"]
[BlackElo "1284"]

1. e4 {[%clk 00:25:18]} {[%emt 00:00:01]} e5 {[%clk 00:25:00]} {[%emt
00:00:20]} 2. Nf3 {[%clk 00:25:26]} {[%emt 00:00:02]} d5 {[%clk 00:25:04]}
{[%emt 00:00:06]} 3. d3 {[%clk 00:23:47]} {[%emt 00:01:49]} dxe4 {[%clk
00:24:54]} {[%emt 00:00:20]} 4. dxe4 {[%clk 00:23:54]} {[%emt 00:00:03]} Qxd1+
{[%clk 00:24:57]} {[%emt 00:00:07]} 5. Kxd1 {[%clk 00:24:03]} {[%emt 00:00:01]}
Nf6 {[%clk 00:24:56]} {[%emt 00:00:12]} 6. Nxe5 {[%clk 00:23:17]} {[%emt
00:00:56]} Nxe4 {[%clk 00:24:57]} {[%emt 00:00:08]} 7. Be3 {[%clk 00:22:09]}
{[%emt 00:01:19]} Bd6 {[%clk 00:24:53]} {[%emt 00:00:13]} 8. Nc4 {[%clk
00:20:31]} {[%emt 00:01:48]} O-O {[%clk 00:24:18]} {[%emt 00:00:46]} 9. Nxd6
{[%clk 00:19:58]} {[%emt 00:00:42]} cxd6 {[%clk 00:24:15]} {[%emt 00:00:12]} 10.
Nd2 {[%clk 00:17:45]} {[%emt 00:02:24]} Nf6 {[%clk 00:24:14]} {[%emt 00:00:11]}
11. Be2 {[%clk 00:17:06]} {[%emt 00:00:49]} Bf5 {[%clk 00:23:51]} {[%emt
00:00:34]} 12. Bf3 {[%clk 00:15:47]} {[%emt 00:01:28]} d5 {[%clk 00:23:02]}
{[%emt 00:00:58]} 13. Bd4 {[%clk 00:14:19]} {[%emt 00:01:39]} Nbd7 {[%clk
00:23:01]} {[%emt 00:00:11]} 14. Nb3 {[%clk 00:12:54]} {[%emt 00:01:36]} Rac8
{[%clk 00:21:59]} {[%emt 00:01:12]} 15. c3 {[%clk 00:12:05]} {[%emt 00:00:59]}
Rfe8 {[%clk 00:19:40]} {[%emt 00:02:28]} 16. Kd2 {[%clk 00:10:37]} {[%emt
00:01:37]} b6 {[%clk 00:17:13]} {[%emt 00:02:38]} 17. Rhe1 {[%clk 00:09:45]}
{[%emt 00:01:02]} h6 {[%clk 00:16:36]} {[%emt 00:00:47]} 18. Rxe8+ {[%clk
00:09:31]} {[%emt 00:00:24]} Rxe8 {[%clk 00:16:37]} {[%emt 00:00:09]} 19. Re1
{[%clk 00:08:20]} {[%emt 00:01:22]} Be4 {[%clk 00:15:49]} {[%emt 00:00:52]} 20.
Bxf6 {[%clk 00:06:59]} {[%emt 00:01:37]} Nxf6 {[%clk 00:15:37]} {[%emt
00:00:11]} 21. Nd4 {[%clk 00:06:54]} {[%emt 00:00:15]} Nd7 {[%clk 00:14:40]}
{[%emt 00:01:14]} 22. Bxe4 {[%clk 00:05:36]} {[%emt 00:01:31]} dxe4 {[%clk
00:14:31]} {[%emt 00:00:19]} 23. Nb3 {[%clk 00:05:08]} {[%emt 00:00:38]} Kh7
{[%clk 00:13:22]} {[%emt 00:01:20]} 24. c4 {[%clk 00:03:34]} {[%emt 00:01:43]}
Rd8 {[%clk 00:13:06]} {[%emt 00:00:25]} 25. Kc3 {[%clk 00:02:53]} {[%emt
00:00:52]} Nf6 {[%clk 00:13:00]} {[%emt 00:00:17]} 26. Nd2 {[%clk 00:01:31]}
{[%emt 00:01:32]} Rd3+ {[%clk 00:12:23]} {[%emt 00:00:40]} 27. Kc2 {[%clk
00:01:40]} {[%emt 00:00:08]} Rd4 {[%clk 00:12:19]} {[%emt 00:00:12]} 28. Kc3
{[%clk 00:01:43]} {[%emt 00:00:08]} Rd3+ {[%clk 00:12:24]} {[%emt 00:00:05]} 29.
Kc2 {[%clk 00:01:52]} {[%emt 00:00:02]} Rd4 {[%clk 00:12:22]} {[%emt 00:00:12]}
1/2-1/2



[ePGN "0.1;DGT LiveChess/2.2.6"]

[Event "MČR družstev mladších žáků 2024"]
[Site "Harrachov, Czech Republic"]
[Date "2024.06.15"]
[Round "5.27"]
[White "Koutecky Vaclav"]
[Black "Zidkova Agnes"]
[Result "1-0"]
[TimeControl "25+10"]
[WhiteFideId "23752602"]
[BlackFideId "23761660"]
[WhiteElo "1194"]
[BlackElo "1159"]

1. e4 {[%clk 00:25:19]} {[%emt 00:00:55]} e6 {[%clk 00:25:19]} {[%emt
00:00:01]} 2. d4 {[%clk 00:25:16]} {[%emt 00:00:14]} d5 {[%clk 00:25:27]}
{[%emt 00:00:01]} 3. Nc3 {[%clk 00:25:20]} {[%emt 00:00:06]} Nf6 {[%clk
00:25:32]} {[%emt 00:00:05]} 4. e5 {[%clk 00:25:07]} {[%emt 00:00:22]} Nfd7
{[%clk 00:25:41]} {[%emt 00:00:02]} 5. Bd3 {[%clk 00:24:59]} {[%emt 00:00:18]}
Bb4 {[%clk 00:25:42]} {[%emt 00:00:09]} 6. Nf3 {[%clk 00:24:43]} {[%emt
00:00:26]} Bxc3+ {[%clk 00:25:46]} {[%emt 00:00:06]} 7. bxc3 {[%clk 00:24:41]}
{[%emt 00:00:12]} c5 {[%clk 00:25:16]} {[%emt 00:00:41]} 8. c4 {[%clk
00:24:12]} {[%emt 00:00:39]} cxd4 {[%clk 00:24:55]} {[%emt 00:00:30]} 9. cxd5
{[%clk 00:24:00]} {[%emt 00:00:21]} exd5 {[%clk 00:24:50]} {[%emt 00:00:16]} 10.
O-O {[%clk 00:23:41]} {[%emt 00:00:29]} Nc6 {[%clk 00:24:36]} {[%emt 00:00:25]}
11. Re1 {[%clk 00:22:23]} {[%emt 00:01:22]} O-O {[%clk 00:24:18]} {[%emt
00:00:32]} 12. Bxh7+ {[%clk 00:21:51]} {[%emt 00:00:43]} Kxh7 {[%clk 00:20:23]}
{[%emt 00:04:06]} 13. Ng5+ {[%clk 00:21:54]} {[%emt 00:00:05]} Kg8 {[%clk
00:20:22]} {[%emt 00:00:12]} 14. Qh5 {[%clk 00:22:00]} {[%emt 00:00:04]} Qxg5
{[%clk 00:18:40]} {[%emt 00:01:52]} 15. Bxg5 {[%clk 00:21:44]} {[%emt
00:00:26]} Ndxe5 {[%clk 00:18:17]} {[%emt 00:00:33]} 16. Be7 {[%clk 00:20:24]}
{[%emt 00:01:24]} Re8 {[%clk 00:17:49]} {[%emt 00:00:45]} 17. Rxe5 {[%clk
00:20:15]} {[%emt 00:00:18]} Nxe5 {[%clk 00:17:19]} {[%emt 00:00:39]} 18. Qxe5
{[%clk 00:20:20]} {[%emt 00:00:05]} Bd7 {[%clk 00:17:21]} {[%emt 00:00:10]} 19.
Qg5 {[%clk 00:20:19]} {[%emt 00:00:06]} Rac8 {[%clk 00:17:13]} {[%emt
00:00:23]} 20. Bf6 {[%clk 00:20:23]} {[%emt 00:00:04]} g6 {[%clk 00:16:22]}
{[%emt 00:01:02]} 21. Qh6 {[%clk 00:20:31]} {[%emt 00:00:02]} 1-0



[ePGN "0.1;DGT LiveChess/2.2.6"]